fUSD/lending_fUSD_20250211
["ID","MTS","AMOUNT","RATE_DAILY","PERIOD"]
[352724339,1739278247633,-500.0,0.00011095,2]
[352724340,1739278247644,-500.0,0.00011095,2]
[352724341,1739278247654,-500.0,0.00011095,2]
[352724342,1739278247666,-500.0,0.00011095,2]
[352724343,1739278247676,-500.0,0.00011095,2]
[352724344,1739278247686,-500.0,0.00011095,2]
[352724345,1739278247700,-500.0,0.00011095,2]
[352724346,1739278247710,-500.0,0.00011095,2]
[352724347,1739278247721,-500.0,0.00011095,2]
[352724348,1739278247732,-500.0,0.00011095,2]
[352724349,1739278247742,-500.0,0.00011095,2]
[352724350,1739278247753,-500.0,0.00011095,2]
[352724351,1739278247763,-927.53,0.00011095,2]
[352724352,1739278247772,-500.0,0.00011095,2]
[352724353,1739278247783,-500.0,0.00011095,2]
[352724354,1739278247793,-500.0,0.00011095,2]
[352724355,1739278247802,-500.0,0.00011095,2]
[352724356,1739278247812,-1684.74,0.00011095,2]
[352724357,1739278247822,-1197.3,0.00011095,2]
[352724358,1739278247832,-500.0,0.00011095,2]
[352724359,1739278247841,-500.0,0.00011095,2]
[352724360,1739278247850,-500.0,0.00011095,2]
[352724361,1739278247860,-500.0,0.00011095,2]
[352724362,1739278247870,-500.0,0.00011095,2]
[352724363,1739278247879,-500.0,0.00011095,2]
[352724364,1739278247888,-1197.04,0.00011095,2]
[352724365,1739278247898,-500.0,0.00011095,2]
[352724366,1739278247907,-500.0,0.00011095,2]
[352724367,1739278247916,-500.0,0.00011095,2]
[352724368,1739278247926,-500.0,0.00011095,2]
[352724369,1739278247936,-500.0,0.00011095,2]
[352724370,1739278247949,-500.0,0.00011095,2]
[352724371,1739278247959,-764.86,0.00011095,2]
[352724372,1739278247968,-648.7,0.00011095,2]
[352724373,1739278247978,-570.47,0.00011095,2]
[352724374,1739278247987,-500.0,0.00011095,2]
[352724375,1739278247997,-500.0,0.00011095,2]
[352724376,1739278248006,-954.26,0.00011095,2]
[352724377,1739278248017,-500.0,0.00011095,2]
[352724378,1739278248030,-635.76,0.00011095,2]
[352724379,1739278248040,-500.0,0.00011095,2]
[352724380,1739278248050,-500.0,0.00011095,2]
[352724381,1739278248060,-957.41,0.00011095,2]
[352724382,1739278248070,-500.0,0.00011095,2]
[352724383,1739278248080,-1394.62,0.00011095,2]
[352724384,1739278248089,-507.12096882,0.00011095,2]
[352724385,1739278248104,-500.0,0.00011095,2]
[352724386,1739278248113,-3460.58,0.00011095,2]
[352724387,1739278248123,-500.0,0.00011095,2]
[352724388,1739278248132,-1171.96,0.00011095,2]
[352724389,1739278248142,-500.0,0.00011095,2]
[352724390,1739278248151,-500.0,0.00011095,2]
[352724391,1739278248161,-500.0,0.00011095,2]
[352724392,1739278248171,-500.0,0.00011095,2]
[352724393,1739278248181,-512.57,0.00011095,2]
[352724394,1739278248193,-500.0,0.00011095,2]
[352724395,1739278248203,-500.0,0.00011095,2]
[352724396,1739278248211,-500.0,0.00011095,2]
[352724397,1739278248220,-1358.2,0.00011095,2]
[352724398,1739278248229,-1708.32,0.00011095,2]
[352724399,1739278248238,-2512.7,0.00011095,2]
[352724400,1739278248248,-1292.19,0.00011095,2]
[352724401,1739278248259,-500.0,0.00011095,2]
[352724402,1739278248271,-500.0,0.00011095,2]
[352724403,1739278248283,-500.0,0.00011095,2]
[352724404,1739278248293,-500.0,0.00011095,2]
[352724405,1739278248304,-500.0,0.00011095,2]
[352724406,1739278248315,-2769.64,0.00011095,2]
[352724407,1739278248325,-1716.39,0.00011095,2]
[352724408,1739278248337,-1173.39,0.00011095,2]
[352724409,1739278248348,-500.0,0.00011095,2]
[352724410,1739278248358,-500.0,0.00011095,2]
[352724411,1739278248369,-1929.69,0.00011095,2]
[352724412,1739278248379,-1610.03,0.00011095,2]
[352724413,1739278248389,-500.0,0.00011095,2]
[352724414,1739278248399,-1922.28,0.00011095,2]
[352724415,1739278248409,-502.54,0.00011095,2]
[352724416,1739278248419,-500.0,0.00011095,2]
[352724417,1739278248429,-500.0,0.00011095,2]
[352724418,1739278248439,-500.0,0.00011095,2]
[352724419,1739278248454,-150.0,0.00011095,2]
[352724420,1739278248465,-2114.25,0.00011095,2]
[352724421,1739278248475,-2322.0,0.00011095,2]
[352724422,1739278248486,-1171.54,0.00011095,2]
[352724423,1739278248497,-500.0,0.00011095,2]
[352724424,1739278248508,-657.39,0.00011095,2]
[352724425,1739278248519,-2287.02,0.00011095,2]
[352724426,1739278248530,-513.61,0.00011095,2]
[352724427,1739278248540,-500.0,0.00011095,2]
[352724428,1739278248550,-500.0,0.00011095,2]
[352724429,1739278248561,-954.9,0.00011095,2]
[352724430,1739278248572,-500.0,0.00011095,2]
[352724431,1739278248582,-2336.6,0.00011095,2]
[352724432,1739278248593,-500.0,0.00011095,2]
[352724433,1739278248603,-500.0,0.00011095,2]
[352724434,1739278248613,-2380.61,0.00011095,2]
[352724435,1739278248623,-856.3,0.00011095,2]
[352724436,1739278248634,-500.0,0.00011095,2]
[352724437,1739278248644,-500.0,0.00011095,2]
[352724438,1739278248655,-500.0,0.00011095,2]
[352724439,1739278248667,-500.0,0.00011095,2]
[352724440,1739278248678,-500.0,0.00011095,2]
[352724441,1739278248689,-500.0,0.00011095,2]
[352724442,1739278248704,-2363.06,0.00011095,2]
[352724443,1739278248714,-628.35,0.00011095,2]
[352724444,1739278248725,-500.0,0.00011095,2]
[352724445,1739278248735,-500.0,0.00011095,2]
[352724446,1739278248746,-1396.86,0.00011095,2]
[352724447,1739278248757,-500.0,0.00011095,2]
[352724448,1739278248768,-500.0,0.00011095,2]
[352724449,1739278248779,-3752.03,0.00011095,2]
[352724450,1739278248790,-2985.41,0.00011095,2]
[352724451,1739278248801,-461.77479844,0.00011095,2]
[352724452,1739278248812,-609.39,0.00011095,2]
[352724453,1739278248822,-500.0,0.00011095,2]
[352724454,1739278248833,-2083.27,0.00011095,2]
[352724455,1739278248844,-892.03,0.00011095,2]
[352724456,1739278248855,-5965.11,0.00011095,2]
[352724457,1739278248867,-1202.86,0.00011095,2]
[352724458,1739278248878,-500.0,0.00011095,2]
[352724459,1739278248889,-500.0,0.00011095,2]
[352724460,1739278248899,-500.0,0.00011095,2]
[352724461,1739278248910,-1926.59,0.00011095,2]
[352724462,1739278248921,-1555.24,0.00011095,2]
[352724463,1739278248931,-653.93,0.00011095,2]
[352724464,1739278248943,-2598.82,0.00011095,2]
[352724465,1739278248954,-1015.34,0.00011095,2]
[352724466,1739278248965,-500.0,0.00011095,2]
[352724467,1739278248975,-500.0,0.00011095,2]
[352724468,1739278248985,-942.01,0.00011095,2]
[352724469,1739278248996,-1842.75,0.00011095,2]
[352724470,1739278249007,-500.0,0.00011095,2]
[352724471,1739278249019,-1077.33,0.00011095,2]
[352724472,1739278249030,-500.0,0.00011095,2]
[352724473,1739278249041,-616.3,0.00011095,2]
[352724474,1739278249051,-500.0,0.00011095,2]
[352724475,1739278249062,-500.0,0.00011095,2]
[352724476,1739278249072,-500.0,0.00011095,2]
[352724477,1739278249082,-500.0,0.00011095,2]
[352724478,1739278249093,-500.0,0.00011095,2]
[352724479,1739278249105,-1580.17,0.00011095,2]
[352724480,1739278249115,-2181.92,0.00011095,2]
[352724481,1739278249127,-500.0,0.00011095,2]
[352724482,1739278249137,-3180.64,0.00011095,2]
[352724483,1739278249334,-500.0,0.00011095,2]
[352724484,1739278249345,-445.99409492,0.00011095,2]
[352724485,1739278249355,-500.0,0.00011095,2]
[352724486,1739278249364,-2027.18,0.00011095,2]
[352724487,1739278249374,-500.0,0.00011095,2]
[352724488,1739278249383,-500.0,0.00011095,2]
[352724489,1739278249392,-500.0,0.00011095,2]
[352724490,1739278249401,-2304.24,0.00011095,2]
[352724491,1739278249410,-500.0,0.00011095,2]
[352724492,1739278249419,-2950.32,0.00011095,2]
[352724493,1739278249429,-500.0,0.00011095,2]
[352724494,1739278249438,-2042.44,0.00011095,2]
[352724495,1739278249449,-500.0,0.00011095,2]
[352724496,1739278249458,-500.0,0.00011095,2]
[352724497,1739278249467,-500.0,0.00011095,2]
[352724498,1739278249477,-1240.14,0.00011095,2]
[352724499,1739278249486,-1763.09,0.00011095,2]
[352724500,1739278249495,-500.0,0.00011095,2]
[352724501,1739278249504,-500.0,0.00011095,2]
[352724502,1739278249514,-970.48,0.00011095,2]
[352724503,1739278249523,-500.0,0.00011095,2]
[352724504,1739278249532,-1883.68,0.00011095,2]
[352724505,1739278249541,-633.11,0.00011095,2]
[352724506,1739278249550,-2220.97,0.00011095,2]
[352724507,1739278249559,-500.0,0.00011095,2]
[352724508,1739278249569,-912.52,0.00011095,2]
[352724509,1739278249578,-1481.28,0.00011095,2]
[352724510,1739278249587,-996.13,0.00011095,2]
[352724511,1739278249597,-519.3,0.00011095,2]
[352724512,1739278249606,-1734.44,0.00011095,2]
[352724513,1739278249615,-2083.64,0.00011095,2]
[352724514,1739278249625,-2614.03,0.00011095,2]
[352724515,1739278249635,-1387.16,0.00011095,2]
[352724516,1739278249645,-1857.46,0.00011095,2]
[352724517,1739278249654,-2024.54,0.00011095,2]
[352724518,1739278249664,-2619.86,0.00011095,2]
[352724519,1739278249674,-500.0,0.00011095,2]
[352724520,1739278249683,-500.0,0.00011095,2]
[352724521,1739278249694,-500.0,0.00011095,2]
[352724522,1739278249704,-1244.2,0.00011095,2]
[352724523,1739278249713,-500.0,0.00011095,2]
[352724524,1739278249723,-500.0,0.00011095,2]
[352724525,1739278249732,-1980.62,0.00011095,2]
[352724526,1739278249741,-500.0,0.00011095,2]
[352724527,1739278249750,-7283.82,0.00011095,2]
[352724528,1739278249760,-500.0,0.00011095,2]
[352724529,1739278249770,-2403.22,0.00011095,2]
[352724530,1739278249779,-3070.18,0.00011095,2]
[352724531,1739278249788,-588.52,0.00011095,2]
[352724532,1739278249797,-500.0,0.00011095,2]
[352724533,1739278249806,-500.0,0.00011095,2]
[352724534,1739278249815,-500.0,0.00011095,2]
[352724535,1739278249825,-549.56,0.00011095,2]
[352724536,1739278249834,-3509.21,0.00011095,2]
[352724537,1739278249844,-2278.5,0.00011095,2]
[352724538,1739278249853,-2055.51,0.00011095,2]
[352724539,1739278249863,-500.0,0.00011095,2]
[352724540,1739278249873,-500.0,0.00011095,2]
[352724541,1739278249883,-500.0,0.00011095,2]
[352724542,1739278249894,-554.29,0.00011095,2]
[352724543,1739278249908,-2181.49,0.00011095,2]
[352724544,1739278249919,-1962.07,0.00011095,2]
[352724545,1739278249929,-583.39,0.00011095,2]
[352724546,1739278249938,-1051.7,0.00011095,2]
[352724547,1739278249949,-581.94,0.00011095,2]
[352724548,1739278249959,-1945.79,0.00011095,2]
[352724549,1739278249968,-500.0,0.00011095,2]
[352724550,1739278249978,-500.0,0.00011095,2]
[352724551,1739278249988,-500.0,0.00011095,2]
[352724552,1739278249997,-500.0,0.00011095,2]
[352724553,1739278250007,-1962.86,0.00011095,2]
[352724554,1739278250018,-1809.85,0.00011095,2]
[352724555,1739278250030,-500.0,0.00011095,2]
[352724556,1739278250041,-2606.07,0.00011095,2]
[352724557,1739278250051,-500.0,0.00011095,2]
[352724558,1739278250063,-1895.17,0.00011095,2]
[352724559,1739278250073,-3071.57,0.00011095,2]
[352724560,1739278250083,-3025.28,0.00011095,2]
[352724561,1739278250093,-500.0,0.00011095,2]
[352724562,1739278250102,-500.0,0.00011095,2]
[352724563,1739278250111,-500.0,0.00011095,2]
[352724564,1739278250120,-862.77,0.00011095,2]
[352724565,1739278250129,-500.0,0.00011095,2]
[352724566,1739278250138,-500.0,0.00011095,2]
[352724567,1739278250147,-3058.38,0.00011095,2]
[352724568,1739278250157,-500.0,0.00011095,2]
[352724569,1739278250166,-5292.65,0.00011095,2]
[352724570,1739278250175,-2148.26,0.00011095,2]
[352724571,1739278250185,-656.49,0.00011095,2]
[352724572,1739278250195,-500.0,0.00011095,2]
[352724573,1739278250204,-1229.24,0.00011095,2]
[352724574,1739278250213,-500.0,0.00011095,2]
[352724575,1739278250223,-500.0,0.00011095,2]
[352724576,1739278250232,-934.39,0.00011095,2]
[352724577,1739278250242,-500.0,0.00011095,2]
[352724578,1739278250251,-500.0,0.00011095,2]
[352724579,1739278250260,-500.0,0.00011095,2]
[352724580,1739278250270,-500.0,0.00011095,2]
[352724581,1739278250279,-2454.11,0.00011095,2]
[352724582,1739278250288,-500.0,0.00011095,2]
[352724583,1739278250296,-2451.23,0.00011095,2]
[352724584,1739278250305,-500.0,0.00011095,2]
[352724585,1739278250315,-3126.56,0.00011095,2]
[352724586,1739278250324,-500.0,0.00011095,2]
[352724587,1739278250333,-572.26,0.00011095,2]
[352724588,1739278250343,-500.0,0.00011095,2]
[352724589,1739278250353,-500.0,0.00011095,2]
[352724590,1739278250362,-500.0,0.00011095,2]
[352724591,1739278250371,-2219.74,0.00011095,2]
[352724592,1739278250381,-500.0,0.00011095,2]
[352724593,1739278250390,-2388.9,0.00011095,2]
[352724594,1739278250399,-1000.0,0.00011095,2]
[352724595,1739278250408,-500.0,0.00011095,2]
[352724596,1739278250418,-500.0,0.00011095,2]
[352724597,1739278250427,-3538.48,0.00011095,2]
[352724598,1739278250436,-500.0,0.00011095,2]
[352724599,1739278250447,-506.98523305,0.00011095,2]
[352724600,1739278250456,-500.0,0.00011095,2]
[352724601,1739278250466,-658.21,0.00011095,2]
[352724602,1739278250475,-541.27764644,0.00011095,2]
[352724603,1739278250484,-621.32,0.00011095,2]
[352724604,1739278250493,-500.0,0.00011095,2]
[352724605,1739278250503,-2132.57,0.00011095,2]
[352724606,1739278250511,-1856.41,0.00011095,2]
[352724607,1739278250520,-1251.74,0.00011095,2]
[352724608,1739278250529,-500.0,0.00011095,2]
[352724609,1739278250539,-1845.05,0.00011095,2]
[352724610,1739278250548,-1420.83,0.00011095,2]
[352724611,1739278250558,-976.99,0.00011095,2]
[352724612,1739278250567,-2982.07,0.00011095,2]
[352724613,1739278250576,-500.0,0.00011095,2]
[352724614,1739278250586,-500.0,0.00011095,2]
[352724615,1739278250596,-500.0,0.00011095,2]
[352724616,1739278250606,-596.55,0.00011095,2]
[352724617,1739278250615,-500.0,0.00011095,2]
[352724618,1739278250625,-1092.76,0.00011095,2]
[352724619,1739278250635,-500.0,0.00011095,2]
[352724620,1739278250644,-974.35,0.00011095,2]
[352724621,1739278250654,-558.02,0.00011095,2]
[352724622,1739278250663,-2178.57,0.00011095,2]
[352724623,1739278250672,-1012.2,0.00011095,2]
[352724624,1739278250681,-500.0,0.00011095,2]
[352724625,1739278250692,-971.28,0.00011095,2]
[352724626,1739278250701,-967.8,0.00011095,2]
[352724627,1739278250711,-2164.81,0.00011095,2]
[352724628,1739278250721,-765.49,0.00011095,2]
[352724629,1739278250731,-500.0,0.00011095,2]
[352724630,1739278250741,-174.526218,0.00011095,2]
[352724631,1739278250751,-763.17,0.00011095,2]
[352724632,1739278250760,-2154.22,0.00011095,2]
[352724633,1739278250771,-1703.24,0.00011095,2]
[352724634,1739278250780,-1351.56,0.00011095,2]
[352724635,1739278250790,-500.0,0.00011095,2]
[352724636,1739278250799,-589.38,0.00011095,2]
[352724637,1739278250810,-1243.77,0.00011095,2]
[352724638,1739278250819,-453.0156851,0.00011099,2]
[352724639,1739278250829,-453.01568501,0.00011099,2]
[352724640,1739278250839,-453.01568501,0.00011102,2]
[352724641,1739278250849,-500.0,0.00011122,2]
[352724642,1739278250858,-2322.0,0.00011122,2]
[352724643,1739278250868,-700.0,0.00011134,2]
[352724644,1739278250878,-600.0,0.00011134,2]
[352724645,1739278250887,-500.0,0.0001115,2]
[352724646,1739278250897,-2322.0,0.0001115,2]
[352724647,1739278250907,-438.84,0.00011151,2]
[352724648,1739278250916,-150.0,0.00011151,2]
[352724649,1739278250926,-150.0,0.00011151,2]
[352724650,1739278250936,-150.0,0.00011151,2]
[352724651,1739278250946,-150.0,0.00011151,2]
[352724652,1739278250956,-150.0,0.00011151,2]
[352724653,1739278250966,-186.42473,0.00011175,2]
[352724654,1739278250977,-500.0,0.00011177,2]
[352724655,1739278250986,-2322.0,0.00011177,2]
[352724656,1739278250996,-507.794811,0.00011192,2]
[352724657,1739278251006,-500.0,0.00011198,2]
[352724658,1739278251016,-500.0,0.00011199,2]
[352724659,1739278251027,-500.0,0.00011199,2]
[352724660,1739278251036,-166.81681241,0.00011199,2]
[352724661,1739278251045,-300.0,0.00011199,2]
[352724662,1739278251056,-500.0,0.00011205,2]
[352724663,1739278251065,-2322.0,0.00011205,2]
[352724664,1739278251075,-217.0,0.0001121,2]
[352724665,1739278251083,-1000.0,0.00011212,2]
[352724666,1739278251095,-453.01568501,0.00011223,2]
[352724667,1739278251107,-1000.0,0.00011227,2]
[352724668,1739278251117,-1000.0,0.00011227,2]
[352724669,1739278251129,-1000.0,0.00011227,2]
[352724670,1739278251138,-1000.0,0.00011227,2]
[352724671,1739278251147,-1000.0,0.00011227,2]
[352724672,1739278251157,-1000.0,0.00011227,2]
[352724673,1739278251166,-1000.0,0.00011227,2]
[352724674,1739278251176,-1000.0,0.00011227,2]
[352724675,1739278251185,-1000.0,0.00011227,2]
[352724676,1739278251196,-1000.0,0.00011227,2]
[352724677,1739278251205,-1000.0,0.00011228,2]
[352724678,1739278251215,-1000.0,0.00011228,2]
[352724679,1739278251224,-1000.0,0.00011228,2]
[352724680,1739278251234,-1000.0,0.00011228,2]
[352724681,1739278251243,-1000.0,0.00011228,2]
[352724682,1739278251252,-1000.0,0.00011228,2]
[352724683,1739278251262,-1000.0,0.00011228,2]
[352724684,1739278251271,-1000.0,0.00011228,2]
[352724685,1739278251281,-1000.0,0.00011228,2]
[352724686,1739278251291,-1000.0,0.00011228,2]
[352724687,1739278251301,-300.0,0.00011231,2]
[352724688,1739278251310,-538.97,0.00011231,2]
[352724689,1739278251320,-700.0,0.00011232,2]
[352724690,1739278251330,-2322.0,0.00011232,2]
[352724691,1739278251340,-2497.087899,0.00011232,2]
[352724692,1739278251349,-500.0,0.00011232,2]
[352724693,1739278251359,-500.0,0.00011232,2]
[352724694,1739278251370,-500.0,0.00011232,2]
[352724695,1739278251380,-500.0,0.00011232,2]
[352724696,1739278251390,-500.0,0.00011232,2]
[352724697,1739278251400,-500.0,0.00011232,2]
[352724698,1739278251410,-619.92936965,0.00011232,2]
[352724699,1739278251420,-762.404245,0.00011232,2]
[352724700,1739278251430,-500.0,0.00011232,2]
[352724701,1739278251439,-1200.0,0.00011232,2]
[352724702,1739278251451,-1200.0,0.00011232,2]
[352724703,1739278251461,-1200.0,0.00011232,2]
[352724704,1739278251471,-500.0,0.00011232,2]
[352724705,1739278251481,-500.0,0.00011232,2]
[352724706,1739278251490,-500.0,0.00011232,2]
[352724707,1739278251500,-500.0,0.00011232,2]
[352724708,1739278251510,-658.52,0.00011232,2]
[352724709,1739278251519,-500.0,0.00011232,2]
[352724710,1739278251529,-500.0,0.00011232,2]
[352724711,1739278251539,-500.0,0.00011232,2]
[352724712,1739278251548,-500.0,0.00011232,2]
[352724713,1739278251558,-500.0,0.00011232,2]
[352724714,1739278251567,-500.0,0.00011232,2]
[352724715,1739278251576,-500.0,0.00011232,2]
[352724716,1739278251586,-500.0,0.00011232,2]
[352724717,1739278251596,-407.96,0.00011232,2]
[352724718,1739278251605,-500.0,0.00011232,2]
[352724719,1739278251614,-500.0,0.00011232,2]
[352724720,1739278251624,-500.0,0.00011232,2]
[352724721,1739278251633,-508.60961643,0.00011232,2]
[352724722,1739278251643,-500.0,0.00011232,2]
[352724723,1739278251652,-500.0,0.00011232,2]
[352724724,1739278251661,-500.0,0.00011232,2]
[352724725,1739278251670,-500.0,0.00011232,2]
[352724726,1739278251679,-500.0,0.00011232,2]
[352724727,1739278251689,-500.0,0.00011232,2]
[352724728,1739278251700,-500.0,0.00011232,2]
[352724729,1739278251710,-500.0,0.00011232,2]
[352724730,1739278251719,-628.93,0.00011232,2]
[352724731,1739278251728,-500.0,0.00011232,2]
[352724732,1739278251738,-743.32,0.00011232,2]
[352724733,1739278251748,-500.0,0.00011232,2]
[352724734,1739278251757,-528.23060704,0.00011232,2]
[352724735,1739278251767,-500.0,0.00011232,2]
[352724736,1739278251776,-500.0,0.00011232,2]
[352724737,1739278251786,-540.85868776,0.00011232,2]
[352724738,1739278251795,-500.0,0.00011232,2]
[352724739,1739278251806,-500.0,0.00011232,2]
[352724740,1739278251816,-500.0,0.00011232,2]
[352724741,1739278251826,-500.0,0.00011232,2]
[352724742,1739278251837,-500.0,0.00011232,2]
[352724743,1739278251847,-326.84,0.00011232,2]
[352724744,1739278251857,-500.0,0.00011232,2]
[352724745,1739278251866,-1213.86,0.00011232,2]
[352724746,1739278251875,-500.0,0.00011232,2]
[352724747,1739278251885,-500.0,0.00011232,2]
[352724748,1739278251894,-500.0,0.00011232,2]
[352724749,1739278251905,-1010.15,0.00011232,2]
[352724750,1739278251917,-500.0,0.00011232,2]
[352724751,1739278251926,-500.0,0.00011232,2]
[352724752,1739278251936,-500.0,0.00011232,2]
[352724753,1739278251946,-837.11,0.00011232,2]
[352724754,1739278251955,-500.0,0.00011232,2]
[352724755,1739278251964,-500.0,0.00011232,2]
[352724756,1739278251973,-500.0,0.00011232,2]
[352724757,1739278251983,-860.99,0.00011232,2]
[352724758,1739278251991,-500.0,0.00011232,2]
[352724759,1739278252000,-500.0,0.00011232,2]
[352724760,1739278252010,-1031.03,0.00011232,2]
[352724761,1739278252020,-500.0,0.00011232,2]
[352724762,1739278252032,-952.88,0.00011232,2]
[352724763,1739278252040,-500.0,0.00011232,2]
[352724764,1739278252050,-500.0,0.00011232,2]
[352724765,1739278252059,-500.0,0.00011232,2]
[352724766,1739278252069,-706.21,0.00011232,2]
[352724767,1739278252078,-510.63,0.00011232,2]
[352724768,1739278252087,-514.43,0.00011232,2]
[352724769,1739278252098,-193.04719811,0.00011232,2]
[352724770,1739278252107,-853.31,0.00011232,2]
[352724771,1739278252116,-500.0,0.00011232,2]
[352724772,1739278252125,-500.0,0.00011232,2]
[352724773,1739278252134,-555.95871267,0.00011232,2]
[352724774,1739278252143,-736.93,0.00011232,2]
[352724775,1739278252153,-500.0,0.00011232,2]
[352724776,1739278252162,-500.0,0.00011232,2]
[352724777,1739278252172,-549.89,0.00011232,2]
[352724778,1739278252181,-521.07,0.00011232,2]
[352724779,1739278252193,-1034.97,0.00011232,2]
[352724780,1739278252202,-500.0,0.00011232,2]
[352724781,1739278252212,-628.42,0.00011232,2]
[352724782,1739278252220,-500.0,0.00011232,2]
[352724783,1739278252230,-500.0,0.00011232,2]
[352724784,1739278252239,-822.52,0.00011232,2]
[352724785,1739278252248,-862.9,0.00011232,2]
[352724786,1739278252258,-500.0,0.00011232,2]
[352724787,1739278252267,-500.0,0.00011232,2]
[352724788,1739278252276,-608.45,0.00011232,2]
[352724789,1739278252285,-500.0,0.00011232,2]
[352724790,1739278252294,-500.0,0.00011232,2]
[352724791,1739278252304,-521.35,0.00011232,2]
[352724792,1739278252313,-500.0,0.00011232,2]
[352724793,1739278252322,-500.0,0.00011232,2]
[352724794,1739278252331,-500.0,0.00011232,2]
[352724795,1739278252341,-500.0,0.00011232,2]
[352724796,1739278252350,-250.76093729,0.00011232,2]
[352724797,1739278252887,-249.23906271,0.00011232,2]
[352724798,1739278252897,-295.14264387,0.00011232,2]
[352724799,1739278252937,-204.85735613,0.00011232,2]
[352724800,1739278252947,-507.97,0.00011232,2]
[352724801,1739278252957,-500.0,0.00011232,2]
[352724802,1739278252967,-1075.77,0.00011232,2]
[352724803,1739278252977,-925.31,0.00011232,2]
[352724804,1739278252987,-500.0,0.00011232,2]
[352724805,1739278252996,-817.64,0.00011232,2]
[352724806,1739278253006,-500.0,0.00011232,2]
[352724807,1739278253016,-500.0,0.00011232,2]
[352724808,1739278253027,-500.0,0.00011232,2]
[352724809,1739278253036,-868.03,0.00011232,2]
[352724810,1739278253045,-1269.51,0.00011232,2]
[352724811,1739278253056,-500.0,0.00011232,2]
[352724812,1739278253065,-612.38,0.00011232,2]
[352724813,1739278253074,-500.0,0.00011232,2]
[352724814,1739278253083,-500.0,0.00011232,2]
[352724815,1739278253093,-500.0,0.00011232,2]
[352724816,1739278253104,-559.89,0.00011232,2]
[352724817,1739278253113,-500.0,0.00011232,2]
[352724818,1739278253122,-754.89,0.00011232,2]
[352724819,1739278253132,-500.0,0.00011232,2]
[352724820,1739278253141,-534.45,0.00011232,2]
[352724821,1739278253151,-673.72,0.00011232,2]
[352724822,1739278253160,-586.58,0.00011232,2]
[352724823,1739278253169,-500.0,0.00011232,2]
[352724824,1739278253178,-500.0,0.00011232,2]
[352724825,1739278253187,-767.53,0.00011232,2]
[352724826,1739278253198,-500.0,0.00011232,2]
[352724827,1739278253207,-500.0,0.00011232,2]
[352724828,1739278253216,-500.0,0.00011232,2]
[352724829,1739278253225,-500.0,0.00011232,2]
[352724830,1739278253236,-1040.12,0.00011232,2]
[352724831,1739278253245,-500.0,0.00011232,2]
[352724832,1739278253255,-518.33,0.00011232,2]
[352724833,1739278253264,-500.0,0.00011232,2]
[352724834,1739278253274,-518.26,0.00011232,2]
[352724835,1739278253283,-604.64595246,0.00011232,2]
[352724836,1739278253292,-500.0,0.00011232,2]
[352724837,1739278253302,-500.0,0.00011232,2]
[352724838,1739278253311,-500.0,0.00011232,2]